Cogmind - Beta 13 @@@ ROGUE MODE // 2024.05.06 @ 12:35:52 Player: KingStarKing Result: Destroyed by D-53 Grenadier with Mini Grenade Launcher Performance ------------- Evolutions (0) 0 Regions Visited (2) 400 Robots Destroyed (19) 95 Value Destroyed (515) 515 Prototype IDs (0) 0 Alien Tech Used (0) 0 Bonus (0) 0 TOTAL SCORE: 1010 Bonus ------- None Cogmind --------- Core Integrity 0/250 Matter 278/300 Energy 100/100 System Corruption 1% Temperature Cool (0) Movement Walking (120) Location -10/Mines Parts ------- > --- POWER (1) -------- (None) > --- PROPULSION (2) --- Aluminum Leg > --- UTILITY (2) ------ Small Storage Unit Hacking Suite > --- WEAPON (2) ------- Light Cannon > --- INVENTORY (8) ---- Ion Engine Light Ion Engine Light Treads Light Treads Aluminum Leg Aluminum Leg Signal Interpreter Seismic Detector Peak State ------------ > --- POWER ------------ Ion Engine > --- PROPULSION ------- Aluminum Leg Aluminum Leg > --- UTILITY ---------- Small Storage Unit Hacking Suite > --- WEAPON ----------- Medium Laser Assault Rifle > --- INVENTORY -------- Light Ion Engine Light Ion Engine Light Treads Light Treads Aluminum Leg Aluminum Leg Signal Interpreter Seismic Detector [Rating: 9] Favorites ----------- Power Ion Engine Engine Ion Engine Propulsion Aluminum Leg Leg Aluminum Leg Utility Small Storage Unit Device Seismic Detector Storage Small Storage Unit Hackware Hacking Suite Weapon Light Cannon Energy Gun Small Laser Ballistic Gun Assault Rifle Ballistic Cannon Light Cannon Build | -11 -10 -10 ------- Run | Yrd Mat Min Slots Evolved . | . . . Power . | . . . Propulsion . | . . . Utility . | . . . Weapon . | . . . Parts Attached 21 | 7 14 . Power 3 | 1 2 . Engine 3 | 1 2 . Core . | . . . Reactor . | . . . Propulsion 10 | 2 8 . Treads . | . . . Leg 10 | 2 8 . Wheel . | . . . Hover . | . . . Flight . | . . . Utility 3 | 2 1 . Device 1 | 1 . . Storage 1 | 1 . . Processor . | . . . Hackware 1 | . 1 . Protection . | . . . Artifact . | . . . Weapon 5 | 2 3 . Energy Gun 2 | 1 1 . Energy Cannon . | . . . Ballistic Gun 1 | 1 . . Ballistic Cannon 2 | . 2 . Launcher . | . . . Special Weapon . | . . . Impact Weapon . | . . . Slashing Weapon . | . . . Piercing Weapon . | . . . Special Melee Weapon . | . . . Unidentified Prototypes . | . . . Parts Lost 3 | . . 3 Power 1 | . . 1 Propulsion 1 | . . 1 Utility . | . . . Weapon 1 | . . 1 Highest Loss Streak 3 | . . 3 To Critical Strikes . | . . . Average Slot Usage (%) 99 | . 100 97 Engine 13 | . 14 12 Leg 27 | . 28 26 Device 5 | . 6 . Storage 14 | . 14 14 Hackware 8 | . 7 14 Energy Gun 7 | . 8 . Ballistic Gun 7 | . 8 . Ballistic Cannon 12 | . 10 28 Naked Turns . | . . . Heaviest Build 16 | 14 16 16 Greatest Support 20 | 20 20 20 Greatest Overweight (x) 2 | 2 . . Average Overweight (x) . | . . . Largest Inventory Capacity 8 | 8 8 8 Average Capacity 7 | 7 8 8 Most Carried 8 | 4 8 8 Average Carried 7 | 2 7 8 Final Capacity 8 | 8 8 8 Final Carried 8 | 4 8 8 Class Distribution -------------------- 80% | Mutant 19% | Scavenger-Mutant Dominant Class ---------------- Mutant | -10/Materials Scavenger-Mutant | -10/Mines Resources | -11 -10 -10 ----------- Run | Yrd Mat Min Matter Collected 630 | 237 355 38 Remotely . | . . . Salvage Created 597 | 52 531 14 Parts 49 | 9 39 1 Haulers Intercepted 1 | . 1 . Recyclers Shooed 2 | 1 1 . Parts Field Recycled . | . . . Retrieved Matter . | . . . Parts Self-Destructed . | . . . Prevented . | . . . Kills | -11 -10 -10 ------- Run | Yrd Mat Min Combat Hostiles Destroyed 15 | . 14 1 Guns 9 | . 9 . Cannons 6 | . 5 1 Classes Destroyed 6 | 1 4 1 Tunneler 2 | 2 . . Hauler 1 | . 1 . Operator 1 | . 1 . Swarmer 3 | . 3 . Grunt 11 | . 11 . Demolisher 1 | . . 1 Best Kill Streak 5 | 2 5 1 Combat Bots Only 5 | . 5 1 Max Kills in Single Turn 1 | 1 1 1 Gunslinging . | . . . Exploded . | . . . Melee . | . . . Uniques/NPCs Destroyed . | . . . Combat | -11 -10 -10 -------- Run | Yrd Mat Min Hostile Shots Fired 96 | . 82 14 Missed 23 | . 20 3 Damage Taken 1231 | . 717 514 Core 259 | . 150 109 Absorbed by Shields . | . . . Core Remaining (%) 100 | 100 . . Volleys Fired 61 | 10 49 2 Largest 2 | 2 2 2 Hottest 70 | 60 70 70 Shots Fired 121 | 18 99 4 Gun 93 | 18 75 . Cannon 28 | . 24 4 Launcher . | . . . Special . | . . . Kinetic 73 | 8 61 4 Thermal 48 | 10 38 . Explosive . | . . . Electromagnetic . | . . . Robot Hit Streak 8 | 3 8 1 Robot Miss Streak 3 | 3 3 1 Penetration Max . | . . . Secondary Targets 2 | . 2 . Max Gunslinging Chain 1 | . 1 . Shots Hit Robots 78 | 10 66 2 Core Hits 31 | 3 26 2 Critical Kills . | . . . Critical Parts Destroyed . | . . . Critical Strikes 1 | . 1 . Blast 1 | . 1 . Melee Attacks . | . . . Impact . | . . . Slashing . | . . . Piercing . | . . . Sneak Attacks . | . . . Combat Hostiles . | . . . Follow-up Attacks . | . . . Damage Inflicted 1020 | 112 873 35 Guns 718 | 112 606 . Cannons 301 | . 266 35 Explosions . | . . . Melee . | . . . Ramming 1 | . 1 . Kinetic 630 | 33 562 35 Thermal 389 | 79 310 . Explosive . | . . . Electromagnetic . | . . . Impact . | . . . Slashing . | . . . Piercing . | . . . Highest Corruption 1 | . 1 1 Average Corruption 1 | . 1 1 Corruption Purged . | . . . Corruption Blocked . | . . . Effects 6 | . 6 . Message Errors 1 | . 1 . Matter Fused 1 | . 1 . Heat Flow Errors 1 | . 1 . Energy Discharges 1 | . 1 . Data Loss (minor) 1 | . 1 . Misfires 1 | . 1 . Overload Shots . | . . . Overflow Damage . | . . . Projectiles . | . . . Explosions . | . . . Melee . | . . . Knockbacks 5 | . 5 . Impact . | . . . Kinetic 5 | . 5 . Secondary . | . . . Self-Inflicted Damage . | . . . Shots . | . . . Rammed . | . . . Targets Rammed 1 | . 1 . Kicked 1 | . 1 . Crushed . | . . . Highest Temperature 177 | . 177 9 Average Temperature 56 | . 57 6 Received Heat Transfer 390 | . 390 . Siege Activations . | . . . Robots Corrupted . | . . . Combat Hostiles . | . . . Parts Fried . | . . . Impact Corruptions . | . . . Robots Melted . | . . . Combat Hostiles . | . . . Parts Melted . | . . . Heat Transferred 1029 | 175 854 . Parts Sabotaged . | . . . Parts Stolen . | . . . Parts Stripped . | . . . Power Chain Reactions . | . . . Alert | -11 -10 -10 ------- Run | Yrd Mat Min Peak Influence 231 | 10 231 90 Initial 90 | . 6 90 Average 93 | 2 105 90 Maximum Alert Level 1 | . 1 . Low Security (%) 75 | 100 69 100 Level 1 24 | . 30 . Level 2 . | . . . Level 3 . | . . . Level 4 . | . . . Level 5 . | . . . High Security . | . . . Max Security . | . . . Squads Dispatched 3 | . 3 . Investigation 2 | . 2 . Extermination . | . . . Reinforcement 1 | . 1 . Assault . | . . . Garrison . | . . . Intercept . | . . . Searches Triggered . | . . . Construction Impeded . | . . . Haulers Reinforced . | . . . Active Scanning Responses . | . . . Cargo Convoy Interrupts . | . . . Stealth | -11 -10 -10 --------- Run | Yrd Mat Min Distress Signals 2 | . 2 . Communications Jammed . | . . . Distress Signals . | . . . Times Spotted 26 | . 24 2 Peak Tracking Total 6 | . 6 2 Tactical Retreats 2 | . 2 . Traps | -11 -10 -10 ------- Run | Yrd Mat Min Traps Triggered 3 | . 3 . Indirectly . | . . . Trap Hack Attempts . | . . . Triggered . | . . . Disarmed . | . . . Reprogrammed . | . . . Reused . | . . . Traps Extracted . | . . . Installed . | . . . Triggered . | . . . Machines | -11 -10 -10 ---------- Run | Yrd Mat Min Machines Disabled . | . . . Max in Single Turn . | . . . Machines Repaired . | . . . Machines Dismantled . | . . . Machines Sabotaged . | . . . Overloaded Fab Kills . | . . . Hacking | -11 -10 -10 --------- Run | Yrd Mat Min Machines Accessed 4 | . 4 . Terminals 4 | . 4 . Fabricators . | . . . Repair Stations . | . . . Recycling Units . | . . . Scanalyzers . | . . . Garrison Access . | . . . Total Hacks 12 | . 12 . Successful 8 | . 8 . Failed 4 | . 4 . Catastrophic . | . . . Database Lockouts . | . . . Manual . | . . . Terminals 12 | . 12 . Fabricators . | . . . Repair Stations . | . . . Recycling Units . | . . . Scanalyzers . | . . . Garrison Access . | . . . Terminal Hacks 8 | . 8 . Record 1 | . 1 . Branch Access Points 1 | . 1 . Locate Traps 2 | . 2 . Patrol Status 1 | . 1 . Investigation Status 1 | . 1 . Zone Layout 2 | . 2 . Fabricator Hacks . | . . . Repair Station Hacks . | . . . Recycling Unit Hacks . | . . . Scanalyzer . | . . . Garrison Access Hacks . | . . . Unauthorized Hacks . | . . . Terminals . | . . . Fabricators . | . . . Repair Stations . | . . . Recycling Units . | . . . Scanalyzers . | . . . Garrison Access . | . . . Data Cores Recovered . | . . . Used . | . . . Hacking Detections 3 | . 3 . Full Trace Events 1 | . 1 . Feedback Events . | . . . Feedback Blocked . | . . . Robot Schematics Acquired . | . . . Robots Built . | . . . Authchips . | . . . Time . | . . . Total Robot Build Rating . | . . . Part Schematics Acquired . | . . . Parts Built . | . . . Authchips . | . . . Time . | . . . Total Part Build Rating . | . . . Parts Repaired . | . . . Time . | . . . Parts Recycled . | . . . Recycled Matter . | . . . Retrieved Matter . | . . . Retrieved Components . | . . . Parts Scanalyzed . | . . . Part Schematics Acquired . | . . . Parts Damaged . | . . . Bothacking | -11 -10 -10 ------------ Run | Yrd Mat Min Used RIF Installer . | . . . Robots Hacked . | . . . Non-combat . | . . . Combat . | . . . Robot Hacks Applied . | . . . Relay Couplers Released . | . . . Fabnet Peak Effective % . | . . . Robots Rewired . | . . . Allies Hacked . | . . . Hacks Repelled . | . . . Allies | -11 -10 -10 -------- Run | Yrd Mat Min Total Allies . | . . . Largest Group . | . . . Highest-Rated Group . | . . . Highest-Rated Ally . | . . . Total Orders . | . . . Ally Attacks . | . . . Total Damage . | . . . Kills . | . . . Allies Corrupted . | . . . Allies Melted . | . . . Intel | -11 -10 -10 ------- Run | Yrd Mat Min Robot Analysis Total . | . . . Derelict Logs Recovered 1 | . . 1 Drone Launches . | . . . Drone Recoveries . | . . . Exploration | -11 -10 -10 ------------- Run | Yrd Mat Min Turns Passed 1269 | 129 1047 93 Spaces Moved 790 | 72 651 67 Core 16 | 16 . . Treads . | . . . Legs 774 | 56 651 67 Wheels . | . . . Hover . | . . . Flight . | . . . Fastest Speed 50 | 50 120 120 Average Speed 119 | 113 120 120 Slowest Speed 150 | 150 120 120 Overloaded Moves . | . . . Propulsion Burnouts . | . . . Robots Hopped . | . . . Cave-ins Triggered . | . . . Exploration Rate (%) 35 | 5 80 21 Regions Visited 2 Branch Regions 1 Pre-discovered Areas . | . . . Known Exits Taken 1 | . 1 . Unknown Exits Taken 1 | 1 . . Scrap Searched 1 | . . 1 Spaces Dug . | . . . Terrain Destroyed . | . . . Melee . | . . . Projectile . | . . . AOE . | . . . Terrain Rammed . | . . . Walls Destroyed . | . . . Machines Disabled . | . . . Actions | -11 -10 -10 --------- Run | Yrd Mat Min Total 1002 | 99 827 76 Wait 98 | 3 88 7 Move 788 | 71 650 67 Hop . | . . . Pick Up 17 | 8 9 . Fast Attach 5 | 3 2 . Attach 4 | 4 . . Detach . | . . . Swap 12 | . 12 . Drop 16 | . 16 . Fire 61 | 10 49 2 Melee . | . . . Ram . | . . . Kick 1 | . 1 . Crush . | . . . Escape Stasis . | . . . Rewire . | . . . Trap . | . . . Miscellaneous . | . . . Route ------- -11/Scrapyard -10/Materials (discovered 4 exits: *Mat x3 / *Min) -10/Mines (discovered 1 exit: Mat) History --------- Turn | Location | Event 11 | -11/Scrapyard | Discovered new exit (range 16) 130 | -11/Scrapyard | Entered Materials 304 | -10/Materials | Build established: Mutant 313 | -10/Materials | Discovered new exit (range 3) 567 | -10/Materials | Discovered new exit (range 3) 622 | -10/Materials | Discovered new exit (range 12) 745 | -10/Materials | Core integrity fell below 50% 942 | -10/Materials | Discovered new exit (range 13) 1132 | -10/Materials | Identified exit to Mines 1177 | -10/Materials | Entered Mines 1201 | -10/Mines | Identified exit to Materials 1211 | -10/Mines | Met a Derelict bent on vengeance 1223 | -10/Mines | Assembled infested the area 1246 | -10/Mines | Core integrity fell below 20% 1270 | -10/Mines | Destroyed by D-53 Grenadier with Mini Grenade Launcher Last Messages --------------- 01201_ Acquired derelict log, extracted data. 01223_ ALERT: Infestation in the mines, dispatching Demolisher response squad. 01241_ C-30 ARC bursts open, deploying its payload. 01241_ D-53 Grenadier unfolds itself. 01243_ K-01 Serf collects debris. 01243_ U-05 Engineer lays Concrete. 01244_ The unstable cave ceiling collapses. 01244_ U-05 Engineer lays Concrete. 01247_ K-01 Serf collects debris. 01247_ U-05 Engineer lays Concrete. 01250_ K-01 Serf collects debris. 01250_ U-05 Engineer lays Concrete. 01257_ The unstable cave ceiling collapses. 01257_ U-05 Engineer lays Concrete. 01258_ U-05 Engineer builds a Wall. 01268_ Aluminum Leg destroyed. 01268_ D-53 Grenadier destroyed. 01268_ Ion Engine destroyed. 01270_ Lgt. Cannon destroyed. Map ----- +----------------------------------------------------+ | | | | | | | | | | | | | | | | | ?????????????????????????????????????????????????? | | ?????????????????????????????????????????????????? | | ?????????????????????????????????????????????????? | | ???????????????????????????????####??????????????? | | ??????????????????????????????## #####??????????? | | ??????????????????????????????# ##?????????? | | ???????????????????????######## ##????????? | | ???????????????????????# #????????? | | ???????????????????????# #????????? | | ???????????????????????# ##### #????????? | | ???????????????????????# #???## ##????????? | | ???????????????????##### #????## ####???????? | | ??????????????????## ###??# # # ##???#### | | ??????????????????# #### ##### | | ???????????????#### # ## ## | | ???????????????# # ## | | ???????????????# ## %d | | ??????????????????# @ # [ | | ??????????????????# # # #### | | ??????????????????# ## ##??# | | ??????????????????## #? ##???? | | ???????????????????## #?# # #????? | | ????????????????????## ## ##??## #???? | | ?????????????????????####?###????# #??? | | ????????????????????????????????# #?? | | ????????????????????????????????# #? | | ????????????????????????????????# " ? | | ???????????????????????????????? "%" | | ???????????????????????????????## " ## ? | | ????????????????????????????????? ##?# ?? | | ?????????????????????????????????? ######??? ??? | | ???????????????????????????????????#?????????????? | | ?????????????????????????????????????????????????? | | ???????????????????????????????????????